[Event "FIDE U16 Olympiad_boards_1-80"]
[Site "Eindhoven, Netherlands"]
[Date "2023.08.14"]
[Round "3.47"]
[White "Kirtadze, Anastasia"]
[Black "Harsh, Suresh"]
[Result "1/2-1/2"]
[TimeControl "2700+10"]
[WhiteElo "1884"]
[BlackElo "2158"]

1. e4 {[%clk 00:45:18]} {[%emt 00:00:02]} g6 {[%clk 00:45:16]} {[%emt
00:00:05]} 2. d4 {[%clk 00:44:12]} {[%emt 00:01:15]} Bg7 {[%clk 00:45:24]}
{[%emt 00:00:03]} 3. Nc3 {[%clk 00:42:13]} {[%emt 00:02:08]} a6 {[%clk
00:45:33]} {[%emt 00:00:02]} 4. Be3 {[%clk 00:41:22]} {[%emt 00:01:01]} b5
{[%clk 00:45:41]} {[%emt 00:00:02]} 5. a3 {[%clk 00:41:30]} {[%emt 00:00:01]}
Bb7 {[%clk 00:45:50]} {[%emt 00:00:02]} 6. Qd2 {[%clk 00:37:33]} {[%emt
00:04:06]} d6 {[%clk 00:45:57]} {[%emt 00:00:04]} 7. h4 {[%clk 00:37:13]}
{[%emt 00:00:29]} h6 {[%clk 00:45:20]} {[%emt 00:00:49]} 8. h5 {[%clk
00:35:10]} {[%emt 00:02:12]} g5 {[%clk 00:45:28]} {[%emt 00:00:01]} 9. f4
{[%clk 00:33:57]} {[%emt 00:01:23]} gxf4 {[%clk 00:45:28]} {[%emt 00:00:11]} 10.
Bxf4 {[%clk 00:34:05]} {[%emt 00:00:02]} Nd7 {[%clk 00:45:34]} {[%emt
00:00:04]} 11. Nf3 {[%clk 00:33:53]} {[%emt 00:00:22]} c5 {[%clk 00:45:11]}
{[%emt 00:00:33]} 12. dxc5 {[%clk 00:29:26]} {[%emt 00:04:37]} Nxc5 {[%clk
00:45:13]} {[%emt 00:00:08]} 13. Bd3 {[%clk 00:28:54]} {[%emt 00:00:41]} Nf6
{[%clk 00:42:35]} {[%emt 00:02:48]} 14. Qe2 {[%clk 00:28:32]} {[%emt 00:00:32]}
Nfd7 {[%clk 00:42:30]} {[%emt 00:00:16]} 15. O-O {[%clk 00:26:44]} {[%emt
00:01:58]} Ne6 {[%clk 00:37:37]} {[%emt 00:05:03]} 16. Be3 {[%clk 00:26:09]}
{[%emt 00:00:45]} Ne5 {[%clk 00:33:08]} {[%emt 00:04:39]} 17. Nh4 {[%clk
00:25:19]} {[%emt 00:00:59]} Bf6 {[%clk 00:31:32]} {[%emt 00:01:46]} 18. Nf5
{[%clk 00:25:27]} {[%emt 00:00:02]} Qd7 {[%clk 00:31:37]} {[%emt 00:00:06]} 19.
a4 {[%clk 00:23:42]} {[%emt 00:01:55]} b4 {[%clk 00:26:18]} {[%emt 00:05:29]}
20. Nd5 {[%clk 00:23:46]} {[%emt 00:00:06]} Bxd5 {[%clk 00:26:08]} {[%emt
00:00:20]} 21. exd5 {[%clk 00:23:52]} {[%emt 00:00:03]} Nc7 {[%clk 00:26:15]}
{[%emt 00:00:03]} 22. Be4 {[%clk 00:22:59]} {[%emt 00:01:03]} Bg5 {[%clk
00:18:03]} {[%emt 00:08:23]} 23. Ng7+ {[%clk 00:20:47]} {[%emt 00:02:22]} Kd8
{[%clk 00:17:39]} {[%emt 00:00:34]} 24. Bb6 {[%clk 00:20:52]} {[%emt 00:00:05]}
Qc8 {[%clk 00:14:26]} {[%emt 00:03:23]} 25. Rxf7 {[%clk 00:19:41]} {[%emt
00:01:21]} Qb7 {[%clk 00:12:21]} {[%emt 00:02:15]} 26. a5 {[%clk 00:17:37]}
{[%emt 00:02:15]} Nxf7 {[%clk 00:10:18]} {[%emt 00:02:12]} 27. Ne6+ {[%clk
00:17:44]} {[%emt 00:00:03]} Ke8 {[%clk 00:10:27]} 28. Bg6 {[%clk 00:15:42]}
{[%emt 00:02:12]} Nxd5 {[%clk 00:09:50]} {[%emt 00:00:47]} 29. Qf3 {[%clk
00:15:12]} {[%emt 00:00:40]} Bf6 {[%clk 00:08:43]} {[%emt 00:01:16]} 30. Be4
{[%clk 00:09:03]} {[%emt 00:06:20]} Ne5 {[%clk 00:08:08]} {[%emt 00:00:46]} 31.
Qb3 {[%clk 00:08:50]} {[%emt 00:00:22]} Rc8 {[%clk 00:07:08]} {[%emt 00:01:10]}
32. Bxd5 {[%clk 00:08:59]} {[%emt 00:00:01]} Qd7 {[%clk 00:07:17]} 33. Nd4
{[%clk 00:07:08]} {[%emt 00:02:01]} Rc5 {[%clk 00:05:43]} {[%emt 00:01:44]} 34.
Be6 {[%clk 00:05:10]} {[%emt 00:02:09]} Qb7 {[%clk 00:05:48]} {[%emt 00:00:04]}
35. Qxb4 {[%clk 00:05:15]} {[%emt 00:00:04]} Nc4 {[%clk 00:03:08]} {[%emt
00:02:50]} 36. Bxc5 {[%clk 00:01:42]} {[%emt 00:03:44]} Bxd4+ {[%clk 00:03:01]}
{[%emt 00:00:17]} 37. Kh1 {[%clk 00:01:45]} {[%emt 00:00:06]} Qxb4 {[%clk
00:02:38]} {[%emt 00:00:34]} 38. Bxb4 {[%clk 00:01:54]} Nxb2 {[%clk 00:02:42]}
{[%emt 00:00:05]} 39. Rb1 {[%clk 00:01:44]} {[%emt 00:00:20]} Rf8 {[%clk
00:01:59]} {[%emt 00:00:53]} 40. Ba3 {[%emt 00:01:27]} Rf6 {[%clk 00:02:05]} 41.
Bd5 {[%clk 00:00:38]} {[%emt 00:00:04]} Rf5 {[%clk 00:00:44]} {[%emt 00:01:31]}
42. Bc6+ {[%clk 00:00:47]} Kd8 {[%clk 00:00:51]} {[%emt 00:00:02]} 43. g4
{[%clk 00:00:55]} {[%emt 00:00:02]} Rxa5 {[%clk 00:00:23]} {[%emt 00:00:39]} 44.
Bxb2 {[%clk 00:01:04]} {[%emt 00:00:01]} Bxb2 {[%clk 00:00:31]} {[%emt
00:00:02]} 45. Rxb2 {[%clk 00:01:13]} Rg5 {[%clk 00:00:28]} {[%emt 00:00:14]}
46. Rb4 {[%clk 00:00:54]} {[%emt 00:00:28]} Rc5 {[%clk 00:00:29]} {[%emt
00:00:09]} 47. Be4 {[%clk 00:01:03]} {[%emt 00:00:01]} d5 {[%clk 00:00:29]}
{[%emt 00:00:10]} 48. Bg6 {[%clk 00:00:42]} {[%emt 00:00:30]} a5 {[%clk
00:00:17]} {[%emt 00:00:23]} 49. Ra4 {[%clk 00:00:46]} {[%emt 00:00:06]} e5
{[%clk 00:00:21]} {[%emt 00:00:06]} 50. g5 {[%clk 00:00:55]} {[%emt 00:00:02]}
hxg5 {[%clk 00:00:25]} {[%emt 00:00:05]} 51. h6 {[%clk 00:01:03]} {[%emt
00:00:01]} Ke7 {[%clk 00:00:32]} {[%emt 00:00:03]} 52. h7 {[%clk 00:01:02]}
{[%emt 00:00:11]} Rc8 {[%clk 00:00:41]} {[%emt 00:00:01]} 53. Rxa5 {[%clk
00:01:11]} {[%emt 00:00:01]} Kf6 {[%clk 00:00:48]} {[%emt 00:00:04]} 54. Ra6+
{[%clk 00:01:17]} {[%emt 00:00:03]} Kg7 {[%clk 00:00:58]} 55. Bf5 {[%clk
00:01:16]} {[%emt 00:00:11]} Rf8 {[%clk 00:01:06]} {[%emt 00:00:01]} 56. Rg6+
{[%clk 00:01:16]} {[%emt 00:00:10]} Kxh7 {[%clk 00:01:08]} {[%emt 00:00:09]} 57.
Rf6+ {[%clk 00:00:47]} {[%emt 00:00:39]} Kg7 {[%clk 00:01:17]} {[%emt
00:00:01]} 58. Rxf8 {[%clk 00:00:56]} Kxf8 {[%clk 00:01:26]} {[%emt 00:00:01]}
59. Be6 {[%clk 00:01:05]} d4 {[%clk 00:01:21]} {[%emt 00:00:16]} 60. Bf5 {[%clk
00:01:13]} Ke7 {[%clk 00:00:41]} {[%emt 00:00:50]} 61. Kg2 {[%clk 00:01:19]}
{[%emt 00:00:03]} Kf6 {[%clk 00:00:38]} {[%emt 00:00:14]} 62. Be4 {[%clk
00:00:58]} {[%emt 00:00:31]} g4 {[%clk 00:00:47]} {[%emt 00:00:01]} 63. Kg3
{[%clk 00:01:07]} Kg5 {[%clk 00:00:56]} {[%emt 00:00:02]} 64. Bd3 {[%clk
00:00:39]} {[%emt 00:00:37]} Kh5 {[%clk 00:01:04]} {[%emt 00:00:02]} 65. Bf5
{[%clk 00:00:17]} {[%emt 00:00:33]} Kg5 {[%clk 00:01:13]} {[%emt 00:00:01]} 66.
Bxg4 {[%clk 00:00:26]} e4 {[%clk 00:01:21]} {[%emt 00:00:04]} 67. Bd1 {[%clk
00:00:34]} d3 {[%clk 00:01:07]} {[%emt 00:00:24]} 68. c3 {[%clk 00:00:22]}
{[%emt 00:00:21]} Kf5 {[%clk 00:01:07]} {[%emt 00:00:11]} 69. Bg4+ {[%clk
00:00:19]} {[%emt 00:00:13]} Ke5 {[%clk 00:01:12]} {[%emt 00:00:04]} 70. Bd1
{[%clk 00:00:20]} {[%emt 00:00:09]} e3 {[%clk 00:00:54]} {[%emt 00:00:28]} 71.
Kf3 {[%clk 00:00:15]} {[%emt 00:00:15]} e2 {[%clk 00:00:59]} {[%emt 00:00:06]}
72. Bxe2 {[%clk 00:00:24]} {[%emt 00:00:01]} dxe2 {[%clk 00:01:08]} {[%emt
00:00:01]} 73. Kxe2 {[%clk 00:00:32]} {[%emt 00:00:01]} Kd5 {[%clk 00:01:16]}
{[%emt 00:00:03]} 74. Kd3 {[%clk 00:00:41]} Kc5 {[%clk 00:01:26]} 75. c4 {[%clk
00:00:49]} {[%emt 00:00:01]} Kc6 {[%clk 00:01:35]} {[%emt 00:00:02]} 76. Kc2
{[%clk 00:00:58]} {[%emt 00:00:01]} Kc5 {[%clk 00:01:44]} 77. Kc3 {[%clk
00:01:07]} {[%emt 00:00:01]} Kc6 {[%clk 00:01:53]} {[%emt 00:00:01]} 78. Kb4
{[%clk 00:01:11]} {[%emt 00:00:06]} Kb6 {[%clk 00:02:01]} {[%emt 00:00:02]} 79.
c5+ {[%clk 00:01:19]} {[%emt 00:00:02]} Kc6 {[%clk 00:02:10]} {[%emt 00:00:01]}
80. Kc4 {[%clk 00:01:27]} {[%emt 00:00:01]} Kc7 {[%clk 00:02:19]} {[%emt
00:00:02]} 81. Kb5 {[%clk 00:01:36]} {[%emt 00:00:01]} Kb7 {[%clk 00:02:28]}
{[%emt 00:00:01]} 82. c6+ {[%clk 00:01:44]} {[%emt 00:00:02]} Kc7 {[%clk
00:02:37]} 83. Kc5 {[%clk 00:01:53]} {[%emt 00:00:01]} Kc8 {[%clk 00:02:46]}
{[%emt 00:00:02]} 84. Kc4 {[%clk 00:02:00]} {[%emt 00:00:03]} Kc7 {[%clk
00:02:55]} {[%emt 00:00:01]} 85. Kb5 {[%clk 00:02:09]} Kc8 {[%clk 00:03:02]}
{[%emt 00:00:03]} 86. Kc5 {[%clk 00:02:15]} {[%emt 00:00:04]} Kc7 {[%clk
00:03:11]} {[%emt 00:00:01]} 87. Kd5 {[%clk 00:02:24]} Kc8 {[%clk 00:03:19]}
{[%emt 00:00:02]} 88. Kd6 {[%clk 00:02:33]} Kd8 {[%clk 00:03:28]} {[%emt
00:00:01]} 1/2-1/2

[Event "FIDE U16 Olympiad_boards_1-80"]
[Site "Eindhoven, Netherlands"]
[Date "2023.08.14"]
[Round "3.48"]
[White "Tejaswini, G"]
[Black "Mgeladze, Kesaria"]
[Result "1-0"]
[TimeControl "2700+10"]
[WhiteElo "1733"]
[BlackElo "1660"]

1. d4 {[%clk 00:45:11]} {[%emt 00:00:08]} Nf6 {[%clk 00:45:18]} {[%emt
00:00:03]} 2. c4 {[%clk 00:45:19]} {[%emt 00:00:02]} g6 {[%clk 00:45:26]}
{[%emt 00:00:02]} 3. Nc3 {[%clk 00:45:27]} {[%emt 00:00:02]} Bg7 {[%clk
00:45:35]} {[%emt 00:00:01]} 4. Nf3 {[%clk 00:45:35]} {[%emt 00:00:02]} O-O
{[%clk 00:45:38]} {[%emt 00:00:06]} 5. g3 {[%clk 00:45:44]} {[%emt 00:00:02]}
d6 {[%clk 00:45:47]} {[%emt 00:00:01]} 6. Bg2 {[%clk 00:45:52]} {[%emt
00:00:02]} c5 {[%clk 00:45:54]} {[%emt 00:00:03]} 7. O-O {[%clk 00:45:56]}
{[%emt 00:00:06]} Nc6 {[%clk 00:46:02]} {[%emt 00:00:02]} 8. d5 {[%clk
00:43:28]} {[%emt 00:02:38]} Na5 {[%clk 00:46:09]} {[%emt 00:00:02]} 9. Qd3
{[%clk 00:43:36]} {[%emt 00:00:03]} a6 {[%clk 00:46:08]} {[%emt 00:00:11]} 10.
Bf4 {[%clk 00:41:52]} {[%emt 00:01:53]} b5 {[%clk 00:45:26]} {[%emt 00:00:52]}
11. Nd2 {[%clk 00:38:46]} {[%emt 00:03:16]} Rb8 {[%clk 00:42:05]} {[%emt
00:03:30]} 12. Rab1 {[%clk 00:37:45]} {[%emt 00:01:12]} Nh5 {[%clk 00:39:30]}
{[%emt 00:02:46]} 13. cxb5 {[%clk 00:34:31]} {[%emt 00:03:24]} Nxf4 {[%clk
00:39:26]} {[%emt 00:00:13]} 14. gxf4 {[%clk 00:34:40]} {[%emt 00:00:02]} axb5
{[%clk 00:39:35]} 15. b4 {[%clk 00:34:36]} {[%emt 00:00:13]} cxb4 {[%clk
00:38:28]} {[%emt 00:01:17]} 16. Rxb4 {[%clk 00:34:45]} Ba6 {[%clk 00:37:03]}
{[%emt 00:01:35]} 17. Rfb1 {[%clk 00:33:59]} {[%emt 00:00:56]} Nc4 {[%clk
00:32:56]} {[%emt 00:04:17]} 18. Nf3 {[%clk 00:31:08]} {[%emt 00:03:02]} Qd7
{[%clk 00:25:35]} {[%emt 00:07:31]} 19. Nd4 {[%clk 00:30:58]} {[%emt 00:00:19]}
Ra8 {[%clk 00:19:26]} {[%emt 00:06:19]} 20. Bh3 {[%clk 00:28:11]} {[%emt
00:02:57]} Qd8 {[%clk 00:16:58]} {[%emt 00:02:38]} 21. Nc6 {[%clk 00:26:13]}
{[%emt 00:02:09]} Qc7 {[%clk 00:17:06]} {[%emt 00:00:01]} 22. Nxb5 {[%clk
00:26:15]} {[%emt 00:00:09]} Bxb5 {[%clk 00:16:14]} {[%emt 00:01:02]} 23. Rxb5
{[%clk 00:26:23]} {[%emt 00:00:01]} Na5 {[%clk 00:14:34]} {[%emt 00:01:50]} 24.
Bg2 {[%clk 00:21:16]} {[%emt 00:05:18]} e6 {[%clk 00:08:53]} {[%emt 00:05:51]}
25. Nxa5 {[%clk 00:16:22]} {[%emt 00:05:04]} Rxa5 {[%clk 00:09:02]} 26. dxe6
{[%clk 00:16:30]} {[%emt 00:00:01]} fxe6 {[%clk 00:08:38]} {[%emt 00:00:34]} 27.
Rb7 {[%clk 00:16:39]} {[%emt 00:00:02]} Qc5 {[%clk 00:07:43]} {[%emt 00:01:05]}
28. Bh3 {[%clk 00:14:44]} {[%emt 00:02:05]} e5 {[%clk 00:05:23]} {[%emt
00:02:30]} 29. Qb3+ {[%clk 00:10:35]} {[%emt 00:04:19]} Kh8 {[%clk 00:05:26]}
{[%emt 00:00:07]} 30. f5 {[%clk 00:08:46]} {[%emt 00:01:59]} Ra3 {[%clk
00:04:14]} {[%emt 00:01:21]} 31. Qe6 {[%clk 00:08:55]} {[%emt 00:00:02]} gxf5
{[%clk 00:03:43]} {[%emt 00:00:41]} 32. Bxf5 {[%clk 00:05:12]} {[%emt
00:03:53]} Rc3 {[%clk 00:00:50]} {[%emt 00:03:03]} 33. R1b4 {[%clk 00:01:42]}
{[%emt 00:03:38]} Rc1+ {[%clk 00:00:33]} {[%emt 00:00:29]} 34. Kg2 {[%clk
00:01:51]} {[%emt 00:00:01]} Qc6+ {[%clk 00:00:42]} 35. Be4 {[%clk 00:01:47]}
{[%emt 00:00:13]} Qc5 {[%clk 00:00:42]} {[%emt 00:00:10]} 36. Bf3 {[%clk
00:00:57]} {[%emt 00:01:01]} Rg8 {[%clk 00:00:24]} {[%emt 00:00:27]} 37. Rg4
{[%clk 00:01:02]} {[%emt 00:00:05]} e4 {[%clk 00:00:22]} {[%emt 00:00:12]} 38.
Bxe4 {[%clk 00:00:49]} {[%emt 00:00:24]} Rf8 {[%clk 00:00:24]} {[%emt
00:00:07]} 39. Bf3 {[%clk 00:00:53]} {[%emt 00:00:06]} Qe5 {[%clk 00:00:19]}
{[%emt 00:00:16]} 40. Rgxg7 {[%clk 00:00:33]} {[%emt 00:00:30]} Qxg7+ {[%clk
00:00:12]} {[%emt 00:00:17]} 41. Rxg7 {[%clk 00:00:41]} {[%emt 00:00:02]} Kxg7
{[%clk 00:00:21]} {[%emt 00:00:01]} 42. Qe7+ {[%clk 00:00:43]} {[%emt
00:00:07]} Rf7 {[%clk 00:00:30]} {[%emt 00:00:02]} 43. Qg5+ {[%clk 00:00:52]}
{[%emt 00:00:01]} 1-0

[Event "FIDE U16 Olympiad_boards_1-80"]
[Site "Eindhoven, Netherlands"]
[Date "2023.08.14"]
[Round "3.49"]
[White "Assylov, Miras"]
[Black "Asllani, Dorian"]
[Result "1/2-1/2"]
[TimeControl "2700+10"]
[WhiteElo "2047"]
[BlackElo "2109"]

1. e4 {[%clk 00:45:15]} {[%emt 00:00:05]} c5 {[%clk 00:45:18]} {[%emt
00:00:03]} 2. Nf3 {[%clk 00:45:22]} {[%emt 00:00:02]} Nc6 {[%clk 00:45:26]}
{[%emt 00:00:03]} 3. d4 {[%clk 00:45:30]} {[%emt 00:00:02]} cxd4 {[%clk
00:45:34]} {[%emt 00:00:02]} 4. Nxd4 {[%clk 00:45:39]} {[%emt 00:00:02]} g6
{[%clk 00:45:42]} {[%emt 00:00:01]} 5. c4 {[%clk 00:45:43]} {[%emt 00:00:06]}
Bg7 {[%clk 00:45:49]} {[%emt 00:00:03]} 6. Be3 {[%clk 00:45:50]} {[%emt
00:00:02]} Nf6 {[%clk 00:45:56]} {[%emt 00:00:03]} 7. Nc3 {[%clk 00:45:58]}
{[%emt 00:00:02]} O-O {[%clk 00:46:03]} {[%emt 00:00:03]} 8. Be2 {[%clk
00:46:03]} {[%emt 00:00:06]} d6 {[%clk 00:46:10]} {[%emt 00:00:03]} 9. O-O
{[%clk 00:46:09]} {[%emt 00:00:04]} Bd7 {[%clk 00:46:17]} {[%emt 00:00:03]} 10.
h3 {[%clk 00:46:16]} {[%emt 00:00:03]} Nxd4 {[%clk 00:46:06]} {[%emt 00:00:21]}
11. Bxd4 {[%clk 00:46:23]} {[%emt 00:00:03]} Bc6 {[%clk 00:46:13]} {[%emt
00:00:03]} 12. Qc2 {[%clk 00:46:12]} {[%emt 00:00:21]} a5 {[%clk 00:46:18]}
{[%emt 00:00:05]} 13. Rad1 {[%clk 00:46:12]} {[%emt 00:00:10]} a4 {[%clk
00:46:25]} {[%emt 00:00:02]} 14. c5 {[%clk 00:41:58]} {[%emt 00:04:25]} Qa5
{[%clk 00:46:29]} {[%emt 00:00:06]} 15. cxd6 {[%clk 00:41:37]} {[%emt
00:00:31]} exd6 {[%clk 00:46:36]} {[%emt 00:00:03]} 16. a3 {[%clk 00:38:42]}
{[%emt 00:03:05]} Rfe8 {[%clk 00:45:41]} {[%emt 00:01:05]} 17. Bf3 {[%clk
00:38:16]} {[%emt 00:00:36]} Re6 {[%clk 00:43:40]} {[%emt 00:02:11]} 18. Rfe1
{[%clk 00:29:25]} {[%emt 00:09:01]} Rae8 {[%clk 00:42:13]} {[%emt 00:01:37]} 19.
Re3 {[%clk 00:26:58]} {[%emt 00:02:37]} b5 {[%clk 00:32:55]} {[%emt 00:09:27]}
20. Nd5 {[%clk 00:13:14]} {[%emt 00:13:55]} Nxd5 {[%clk 00:23:31]} {[%emt
00:09:34]} 21. exd5 {[%clk 00:13:20]} {[%emt 00:00:04]} Rxe3 {[%clk 00:23:33]}
{[%emt 00:00:07]} 22. Bxe3 {[%clk 00:13:20]} {[%emt 00:00:10]} Bd7 {[%clk
00:23:16]} {[%emt 00:00:28]} 23. Bd2 {[%clk 00:11:54]} {[%emt 00:01:36]} Qb6
{[%clk 00:22:13]} {[%emt 00:01:13]} 24. Bb4 {[%clk 00:11:47]} {[%emt 00:00:16]}
Rc8 {[%emt 00:04:36]} 25. Qe2 {[%clk 00:08:58]} Bf5 {[%clk 00:16:59]} {[%emt
00:03:56]} 26. g4 {[%clk 00:06:23]} {[%emt 00:02:45]} Rc2 {[%clk 00:11:01]}
{[%emt 00:06:08]} 27. Rd2 {[%clk 00:05:48]} {[%emt 00:00:46]} Rc1+ {[%clk
00:05:46]} {[%emt 00:05:25]} 28. Kg2 {[%clk 00:05:56]} {[%emt 00:00:02]} Bc8
{[%clk 00:02:17]} {[%emt 00:03:38]} 29. Qe8+ {[%clk 00:05:52]} {[%emt
00:00:15]} Bf8 {[%clk 00:02:25]} {[%emt 00:00:01]} 30. Re2 {[%clk 00:05:42]}
{[%emt 00:00:21]} Qc7 {[%clk 00:00:38]} {[%emt 00:01:57]} 31. Qxb5 {[%clk
00:04:40]} {[%emt 00:01:12]} Bd7 {[%clk 00:00:35]} {[%emt 00:00:13]} 32. Qa6
{[%clk 00:04:43]} {[%emt 00:00:05]} Qb8 {[%emt 00:02:32]} 33. Qd3 {[%clk
00:02:38]} Bb5 {[%clk 00:00:12]} {[%emt 00:00:28]} 34. Qd2 {[%clk 00:02:47]}
{[%emt 00:00:01]} Bxe2 {[%clk 00:00:20]} {[%emt 00:00:01]} 35. Qxc1 {[%clk
00:02:56]} {[%emt 00:00:02]} Bxf3+ {[%clk 00:00:28]} {[%emt 00:00:02]} 36. Kxf3
{[%clk 00:03:05]} Qb5 {[%clk 00:00:36]} {[%emt 00:00:03]} 37. Qd2 {[%clk
00:02:45]} {[%emt 00:00:29]} Qf1 {[%clk 00:00:24]} {[%emt 00:00:22]} 38. Kg3
{[%clk 00:00:57]} {[%emt 00:01:58]} Qg1+ {[%clk 00:00:32]} {[%emt 00:00:02]} 39.
Kf3 {[%clk 00:01:06]} Qh1+ {[%clk 00:00:39]} {[%emt 00:00:03]} 40. Ke2 {[%clk
00:00:22]} {[%emt 00:00:54]} Qxh3 {[%clk 00:00:39]} {[%emt 00:00:09]} 41. Qf4
{[%clk 00:00:29]} {[%emt 00:00:04]} Qb3 {[%clk 00:00:24]} {[%emt 00:00:25]} 42.
Bxd6 {[%clk 00:00:18]} {[%emt 00:00:21]} Qxd5 {[%clk 00:00:12]} {[%emt
00:00:22]} 43. Bxf8 {[%clk 00:00:25]} {[%emt 00:00:02]} Qb5+ {[%clk 00:00:18]}
{[%emt 00:00:05]} 44. Kd1 {[%clk 00:00:19]} {[%emt 00:00:16]} Kxf8 {[%clk
00:00:13]} {[%emt 00:00:15]} 45. Qd6+ {[%clk 00:00:18]} {[%emt 00:00:11]} Kg8
{[%clk 00:00:13]} {[%emt 00:00:10]} 46. Qd8+ {[%clk 00:00:23]} {[%emt
00:00:05]} Kg7 {[%clk 00:00:22]} 47. Qd4+ {[%clk 00:00:32]} {[%emt 00:00:01]}
Kg8 {[%clk 00:00:27]} {[%emt 00:00:05]} 48. Qd8+ {[%clk 00:00:22]} {[%emt
00:00:20]} Kg7 {[%clk 00:00:33]} {[%emt 00:00:04]} 49. Qd4+ {[%clk 00:00:24]}
{[%emt 00:00:07]} Kg8 {[%clk 00:00:12]} {[%emt 00:00:32]} 50. Kc2 {[%clk
00:00:16]} {[%emt 00:00:18]} Qb3+ {[%clk 00:00:16]} {[%emt 00:00:06]} 51. Kc1
{[%clk 00:00:22]} {[%emt 00:00:03]} Qb5 {[%clk 00:00:14]} {[%emt 00:00:13]} 52.
Kb1 {[%clk 00:00:15]} {[%emt 00:00:18]} h5 {[%clk 00:00:12]} {[%emt 00:00:11]}
53. gxh5 {[%clk 00:00:23]} {[%emt 00:00:01]} gxh5 {[%clk 00:00:21]} {[%emt
00:00:02]} 54. Qf4 {[%clk 00:00:13]} {[%emt 00:00:20]} Qd3+ {[%clk 00:00:25]}
{[%emt 00:00:06]} 55. Ka1 {[%clk 00:00:20]} {[%emt 00:00:04]} Qd1+ {[%clk
00:00:25]} {[%emt 00:00:09]} 56. Ka2 {[%clk 00:00:29]} {[%emt 00:00:01]} Qb3+
{[%clk 00:00:30]} {[%emt 00:00:06]} 57. Ka1 {[%clk 00:00:19]} {[%emt 00:00:19]}
Qd1+ {[%clk 00:00:37]} {[%emt 00:00:02]} 58. Ka2 {[%clk 00:00:25]} {[%emt
00:00:05]} Qb3+ {[%clk 00:00:46]} {[%emt 00:00:01]} 59. Ka1 {[%clk 00:00:34]}
Qd1+ {[%clk 00:00:55]} 1/2-1/2

[Event "FIDE U16 Olympiad_boards_1-80"]
[Site "Eindhoven, Netherlands"]
[Date "2023.08.14"]
[Round "3.50"]
[White "Mattenberger, Matthias"]
[Black "Mukhametkali, Merey"]
[Result "1-0"]
[TimeControl "2700+10"]
[WhiteElo "2276"]
[BlackElo "1792"]

1. d4 {[%clk 00:45:19]} d5 {[%clk 00:45:15]} {[%emt 00:00:06]} 2. c4 {[%clk
00:45:27]} {[%emt 00:00:02]} c6 {[%clk 00:45:21]} {[%emt 00:00:04]} 3. Nc3
{[%clk 00:45:35]} {[%emt 00:00:02]} Nf6 {[%clk 00:45:27]} {[%emt 00:00:04]} 4.
Nf3 {[%clk 00:45:41]} {[%emt 00:00:04]} e6 {[%clk 00:45:34]} {[%emt 00:00:02]}
5. Bg5 {[%clk 00:45:49]} {[%emt 00:00:02]} dxc4 {[%clk 00:45:41]} {[%emt
00:00:03]} 6. e4 {[%clk 00:45:57]} {[%emt 00:00:03]} b5 {[%clk 00:45:46]}
{[%emt 00:00:04]} 7. e5 {[%clk 00:46:05]} {[%emt 00:00:03]} h6 {[%clk
00:45:54]} {[%emt 00:00:02]} 8. Bh4 {[%clk 00:46:13]} {[%emt 00:00:01]} g5
{[%clk 00:46:00]} {[%emt 00:00:04]} 9. Nxg5 {[%clk 00:46:21]} {[%emt 00:00:02]}
hxg5 {[%clk 00:46:08]} {[%emt 00:00:03]} 10. Bxg5 {[%clk 00:46:29]} {[%emt
00:00:02]} Nbd7 {[%clk 00:46:14]} {[%emt 00:00:03]} 11. g3 {[%clk 00:46:33]}
{[%emt 00:00:06]} Bb7 {[%clk 00:46:00]} {[%emt 00:00:24]} 12. Bg2 {[%clk
00:46:41]} {[%emt 00:00:03]} Qb6 {[%clk 00:45:38]} {[%emt 00:00:32]} 13. exf6
{[%clk 00:46:48]} {[%emt 00:00:03]} c5 {[%clk 00:44:43]} {[%emt 00:01:05]} 14.
dxc5 {[%clk 00:46:34]} {[%emt 00:00:23]} Bxc5 {[%clk 00:40:50]} {[%emt
00:04:02]} 15. O-O {[%clk 00:46:33]} {[%emt 00:00:12]} O-O-O {[%clk 00:36:31]}
{[%emt 00:04:29]} 16. Qe2 {[%clk 00:44:12]} {[%emt 00:02:31]} Bd4 {[%clk
00:27:36]} {[%emt 00:09:04]} 17. a4 {[%clk 00:39:25]} {[%emt 00:04:58]} Bxg2
{[%clk 00:16:57]} {[%emt 00:10:50]} 18. Kxg2 {[%clk 00:39:12]} {[%emt
00:00:22]} Qb7+ {[%clk 00:16:18]} {[%emt 00:00:48]} 19. f3 {[%clk 00:38:07]}
{[%emt 00:01:17]} a6 {[%clk 00:15:23]} {[%emt 00:01:04]} 20. axb5 {[%clk
00:31:33]} {[%emt 00:06:44]} axb5 {[%clk 00:15:31]} {[%emt 00:00:02]} 21. Ra5
{[%clk 00:30:37]} {[%emt 00:01:05]} Bxc3 {[%clk 00:13:55]} {[%emt 00:01:47]} 22.
bxc3 {[%clk 00:30:06]} {[%emt 00:00:42]} Nb8 {[%clk 00:13:14]} {[%emt
00:00:50]} 23. Rb1 {[%clk 00:28:58]} {[%emt 00:01:18]} Rd5 {[%clk 00:06:46]}
{[%emt 00:06:38]} 24. Raxb5 {[%clk 00:28:48]} {[%emt 00:00:20]} Rxb5 {[%clk
00:05:58]} {[%emt 00:00:58]} 25. Qxc4+ {[%clk 00:28:55]} {[%emt 00:00:03]} Qc6
{[%clk 00:05:42]} {[%emt 00:00:26]} 26. Qxb5 {[%clk 00:28:41]} {[%emt
00:00:25]} Qxb5 {[%clk 00:05:29]} {[%emt 00:00:22]} 27. Rxb5 {[%clk 00:28:49]}
{[%emt 00:00:03]} Nc6 {[%clk 00:05:38]} 28. Bf4 {[%clk 00:27:55]} {[%emt
00:01:04]} Rg8 {[%clk 00:04:45]} {[%emt 00:01:01]} 29. Rb6 {[%clk 00:27:59]}
{[%emt 00:00:07]} Nd8 {[%clk 00:04:52]} {[%emt 00:00:03]} 30. h4 {[%clk
00:27:19]} {[%emt 00:00:51]} Rg6 {[%clk 00:04:53]} {[%emt 00:00:08]} 31. Be5
{[%clk 00:27:05]} {[%emt 00:00:24]} Rh6 {[%clk 00:04:50]} {[%emt 00:00:12]} 32.
c4 {[%clk 00:26:48]} {[%emt 00:00:29]} Kd7 {[%clk 00:04:52]} {[%emt 00:00:06]}
33. Rd6+ {[%clk 00:26:14]} {[%emt 00:00:46]} Ke8 {[%clk 00:04:59]} {[%emt
00:00:02]} 34. c5 {[%clk 00:25:40]} {[%emt 00:00:44]} Rh5 {[%clk 00:04:45]}
{[%emt 00:00:25]} 35. f4 {[%clk 00:25:43]} {[%emt 00:00:08]} Nb7 {[%clk
00:04:20]} {[%emt 00:00:33]} 36. Rc6 {[%clk 00:25:43]} {[%emt 00:00:09]} Nd8
{[%clk 00:04:28]} {[%emt 00:00:03]} 37. Rc7 {[%clk 00:25:43]} {[%emt 00:00:09]}
1-0